bitfinex-derivatives/quotes_SOLF0:USTF0_20250603
["timestamp","ask_amount","ask_price","bid_price","bid_amount"]
[1748957574953,0.04506399,160.47,160.46,6.2278]
[1748957576356,0.04506399,160.47,160.43,0.04454078]
[1748957576953,0.04506399,160.47,160.46,6.2278]
[1748957577659,6.399e-05,160.47,160.46,6.2278]
[1748957577960,0.48576,160.52,160.46,6.24]
[1748957578159,0.48576,160.52,160.46,24.63931628]
[1748957578356,36.9,160.57,160.49,24.63931628]
[1748957578766,0.04567805,160.55,160.51,0.04703447]
[1748957580656,0.04567805,160.55,160.54,6.2247]
[1748957580961,0.04567805,160.55,160.51,0.04703447]
[1748957581163,0.04567805,160.55,160.54,6.2247]
[1748957581361,581.282,160.61,160.52,26.71231628]
[1748957581562,581.282,160.61,160.52,2.073]
[1748957581563,575.06,160.61,160.52,2.073]
[1748957582458,0.04371795,160.58,160.55,0.04340178]
[1748957582855,0.04371795,160.58,160.57,6.2236]
[1748957583053,36.9,160.61,160.55,24.68271806]
[1748957583263,36.9,160.65,160.55,24.68271806]
[1748957583470,36.9,160.65,160.53,61.53931628]
[1748957583765,36.9,160.65,160.53,1.9685]
[1748957583766,24.63931628,160.6,160.53,1.9685]
[1748957583966,36.9,160.6,160.57,6.2235]
[1748957584273,0.04177509,160.58,160.55,0.04018492]
[1748957585567,0.04177509,160.58,160.57,6.2236]
[1748957586361,0.04177509,160.58,160.55,0.04018492]
[1748957586558,30.86331628,160.56,160.55,0.04018492]
[1748957586755,36.9,160.56,160.55,0.04018492]
[1748957587167,0.04177509,160.58,160.55,0.04018492]
[1748957587363,0.04177509,160.58,160.57,6.2236]
[1748957588163,0.04177509,160.58,160.55,6.26418492]
[1748957588364,0.04177509,160.58,160.55,0.04018492]
[1748957590068,18.59,160.55,160.41,3.15352566]
[1748957590368,24.73405264,160.42,160.25,2.55397415]
[1748957590567,24.73405264,160.36,160.25,2.55397415]
[1748957590764,6.233,160.33,160.25,2.55397415]
[1748957591070,0.04232251,160.31,160.27,0.04499462]
[1748957591370,36.9,160.39,160.28,24.73405264]
[1748957591668,6.2314,160.37,160.31,6.2336]
[1748957591866,36.9,160.39,160.29,2.1246]
[1748957592260,36.9,160.39,160.32,0.04122834]
[1748957592261,0.04182354,160.36,160.32,0.04122834]
[1748957592867,0.04182354,160.36,160.35,6.2321]
[1748957593268,0.04182354,160.36,160.32,2.12472834]
[1748957593766,36.9,160.43,160.32,39.02472834]
[1748957593973,36.9,160.43,160.34,24.73405264]
[1748957594271,538.14,160.49,160.34,24.73405264]
[1748957594460,36.9,160.47,160.37,24.73405264]
[1748957594662,36.9,160.47,160.38,36.9]
[1748957594864,0.03967385,160.44,160.41,0.04253412]
[1748957595564,36.9,160.47,160.46,6.2278]
[1748957595768,36.9,160.51,160.4,24.73405264]
[1748957595962,36.9,160.51,160.49,6.2264]
[1748957596165,36.9,160.51,160.4,24.73405264]
[1748957596368,36.9,160.51,160.38,36.9]
[1748957596369,36.9,160.51,160.43,24.73405264]
[1748957596569,7.651e-05,160.49,160.48,6.2271]
[1748957599471,7.651e-05,160.49,160.48,43.9271]
[1748957599879,7.651e-05,160.49,160.48,50.1671]
[1748957600974,7.651e-05,160.49,160.48,43.9271]
[1748957601278,7.651e-05,160.49,160.48,74.90115264]
[1748957601676,37.7,160.64,160.48,68.67405264]
[1748957601871,37.7,160.69,160.55,24.73405264]
[1748957602077,6.2204,160.66,160.56,6.3222]
[1748957602273,24.73405264,160.67,160.56,6.3222]
[1748957602578,6.221,160.64,160.56,6.3222]
[1748957602882,0.04299363,160.63,160.6,0.03991293]
[1748957604379,0.04299363,160.63,160.61,6.2217]
[1748957604882,0.04299363,160.63,160.6,6.26231293]
[1748957605175,0.04299363,160.63,160.6,0.03991293]
[1748957606083,0.04299363,160.63,160.6,6.26221293]
[1748957606484,0.04299363,160.63,160.6,0.03991293]
[1748957606679,0.04299363,160.63,160.6,6.26221293]
[1748957607381,0.04299363,160.63,160.6,0.03991293]
[1748957609282,37.68,160.67,160.6,0.03991293]
[1748957610080,6.2202,160.66,160.61,6.222]
[1748957610281,0.04020191,160.65,160.6,0.03991293]
[1748957610689,6.2215,160.63,160.6,0.03991293]
[1748957610989,37.68,160.63,160.6,0.03991293]
[1748957611295,200.38529618,160.63,160.51,37.68]
[1748957611589,24.64529618,160.59,160.51,37.68]
[1748957611788,62.30529618,160.59,160.51,37.68]
[1748957611984,37.66,160.59,160.51,37.68]
[1748957612191,0.04102626,160.57,160.53,0.04091191]
[1748957612491,37.66,160.63,160.53,0.04414129]
[1748957612678,37.66,160.63,160.51,37.68]
[1748957612887,24.64529618,160.59,160.51,37.68]
[1748957613091,24.64529618,160.56,160.49,4.0497]
[1748957613385,0.04531418,160.54,160.51,0.04461599]
[1748957614093,24.64529618,160.52,160.42,37.66]
[1748957614590,6.2271,160.48,160.42,37.66]
[1748957614787,43.9071,160.48,160.39,2.0928]
[1748957614987,0.04370473,160.45,160.42,0.04209044]
[1748957616182,0.04370473,160.45,160.42,6.27139044]
[1748957616387,0.04370473,160.45,160.42,0.04209044]
[1748957618187,0.04370473,160.45,160.43,6.2287]
[1748957618391,0.04370473,160.45,160.42,0.04209044]
[1748957618791,0.04370473,160.45,160.44,6.2286]
[1748957619096,37.68,160.48,160.42,0.04209044]
[1748957619392,37.68,160.48,160.47,6.2275]
[1748957619600,37.68,160.52,160.4,24.64529618]
[1748957620003,0.04789218,160.48,160.44,0.04570874]
[1748957621492,0.04789218,160.48,160.46,6.2275]
[1748957621798,0.04789218,160.48,160.44,0.04570874]
[1748957622388,9.218e-05,160.48,160.47,6.2275]
[1748957622803,9.218e-05,160.48,160.47,50.1475]
[1748957622993,62.32529618,160.6,160.47,43.92]
[1748957623187,62.32529618,160.6,160.51,24.64529618]
[1748957623188,37.68,160.6,160.51,24.64529618]
[1748957623497,37.68,160.6,160.45,16.7373]
[1748957623498,37.68,160.6,160.52,39.7905]
[1748957623695,37.68,160.6,160.52,2.1105]
[1748957624199,0.04350512,160.58,160.54,0.04234871]
[1748957624703,0.04350512,160.58,160.55,6.2243]
[1748957625197,0.04350512,160.58,160.54,0.04234871]
[1748957627700,0.04350512,160.58,160.57,6.2236]
[1748957629201,38.0,160.64,160.56,38.0]
[1748957629503,538.0,160.71,160.57,26.68459618]
[1748957629504,38.0,160.67,160.57,26.68459618]
[1748957629801,62.64529618,160.67,160.57,2.0393]
[1748957630203,0.04173455,160.64,160.6,0.04222954]
[1748957631508,0.04173455,160.64,160.6,6.26442954]
[1748957631699,0.04173455,160.64,160.6,0.04222954]
[1748957633106,0.04173455,160.64,160.63,6.2213]
[1748957634398,0.04173455,160.64,160.6,0.04222954]
[1748957635911,0.04173455,160.64,160.63,6.2213]
[1748957636408,0.04173455,160.64,160.6,0.04222954]
[1748957639304,6.2213,160.63,160.6,0.04222954]
[1748957639510,24.68703073,160.64,160.6,0.04222954]
[1748957639909,6.2217,160.62,160.6,0.04222954]
[1748957640110,37.98,160.62,160.6,0.04222954]
[1748957640705,24.64529618,160.61,160.52,2.1105]
[1748957640905,37.98,160.62,160.52,2.1105]
[1748957640906,6.2234,160.58,160.52,2.1105]
[1748957641101,24.64529618,160.61,160.52,2.1105]
[1748957641404,24.64529618,160.64,160.52,2.1105]
[1748957641610,0.04303742,160.6,160.56,0.04229956]
[1748957642009,6.26573742,160.6,160.56,0.04229956]
[1748957642211,0.04303742,160.6,160.56,0.04229956]
[1748957642804,6.26563742,160.6,160.56,0.04229956]
[1748957643206,0.04303742,160.6,160.56,0.04229956]
[1748957644313,6.2232,160.59,160.56,0.04229956]
[1748957644513,0.04303742,160.6,160.56,0.04229956]
[1748957644713,0.04303742,160.6,160.56,6.26599956]
[1748957645017,0.04303742,160.6,160.56,0.04229956]
[1748957645507,6.2236,160.57,160.56,0.04229956]
[1748957645707,37.98,160.57,160.5,1.9953]
[1748957645914,6.2246,160.55,160.46,2.0137]
[1748957646111,37.98,160.57,160.46,2.0137]
[1748957646312,62.62529618,160.57,160.52,6.2254]
[1748957646610,6.26874015,160.56,160.53,0.04023061]
[1748957647118,6.2245,160.55,160.53,0.04023061]
[1748957647306,0.04454015,160.56,160.53,0.04023061]
[1748957647511,6.2244,160.55,160.53,0.04023061]
[1748957648015,0.04454015,160.56,160.53,0.04023061]
[1748957649119,6.26884015,160.56,160.53,0.04023061]
[1748957649416,24.68983633,160.56,160.46,2.0137]
[1748957649716,37.98,160.57,160.46,2.0137]
[1748957649717,24.64529618,160.53,160.46,2.0137]
[1748957649913,37.98,160.52,160.46,8.2414]
[1748957650313,37.98,160.52,160.47,6.2274]
[1748957650515,0.04213284,160.51,160.48,0.04344501]
[1748957652120,6.26813284,160.51,160.48,0.04344501]
[1748957652320,0.04213284,160.51,160.48,0.04344501]
[1748957652820,37.98,160.56,160.48,0.04344501]
[1748957653021,37.98,160.56,160.48,2.12774501]
[1748957653813,0.04761327,160.54,160.48,2.12774501]
[1748957654213,0.04761327,160.54,160.53,6.2252]
[1748957655417,0.04761327,160.54,160.52,0.04386566]
[1748957657130,0.04761327,160.54,160.53,6.2252]
[1748957658229,0.04761327,160.54,160.52,0.04386566]
[1748957658432,6.27241327,160.54,160.52,0.04386566]
[1748957658634,0.04761327,160.54,160.52,0.04386566]
[1748957659323,0.04761327,160.54,160.53,6.2252]
[1748957659927,37.56,160.6,160.52,0.04386566]
[1748957660721,6.2239,160.57,160.52,0.04386566]
[1748957661026,37.56,160.56,160.52,0.04386566]
[1748957661230,62.20529618,160.56,160.52,0.04386566]
[1748957662421,37.56,160.56,160.52,0.04386566]
[1748957664132,37.56,160.56,160.55,6.2244]
[1748957664331,37.56,160.56,160.52,0.04386566]
[1748957664634,37.56,160.56,160.54,6.2245]
[1748957664833,37.56,160.56,160.52,0.04386566]
[1748957665228,43.7844,160.56,160.52,0.04386566]
[1748957665534,37.56,160.56,160.52,0.04386566]
[1748957665833,6.2246,160.55,160.52,0.04386566]
[1748957666332,16.23171106,160.54,160.43,5.78099347]
[1748957666634,16.23171106,160.52,160.48,6.227]
[1748957666826,37.56,160.51,160.42,16.23171106]
[1748957667027,53.79171106,160.52,160.41,5.78099347]
[1748957667222,16.23171106,160.5,160.4,5.78099347]
[1748957667423,0.04480026,160.47,160.43,0.04432569]
[1748957667625,37.60480026,160.47,160.43,0.04432569]
[1748957668930,37.60480026,160.47,160.46,6.228]
[1748957669140,0.04480026,160.47,160.46,6.228]
[1748957670132,37.56,160.55,160.46,6.24]
[1748957670440,37.56,160.55,160.47,4.2148]
[1748957670639,43.7845,160.55,160.47,4.2148]
[1748957671032,0.0413677,160.53,160.49,0.04735719]
[1748957671734,0.0413677,160.53,160.51,6.2257]
[1748957672333,0.0413677,160.53,160.52,6.2256]
[1748957673334,0.0413677,160.53,160.49,0.04735719]
[1748957673837,0.0413677,160.53,160.49,6.27395719]
[1748957674240,6.2668677,160.53,160.49,0.04735719]
[1748957674441,0.0413677,160.53,160.49,0.04735719]
[1748957674942,6.2666677,160.53,160.49,6.27395719]
[1748957675334,0.0413677,160.53,160.49,0.04735719]
[1748957675839,24.68073585,160.51,160.49,0.04735719]
[1748957676035,37.56,160.5,160.49,0.04735719]
[1748957679744,37.56,160.5,160.44,6.2285]
[1748957680040,37.56,160.5,160.41,4.171]
[1748957680041,24.68073585,160.49,160.41,4.171]
[1748957680737,6.2281,160.46,160.43,0.04228492]
[1748957680943,43.7881,160.46,160.43,0.04228492]
[1748957681140,37.56,160.46,160.43,0.04228492]
[1748957681743,43.7881,160.46,160.43,0.04228492]
[1748957682143,37.56,160.46,160.43,0.04228492]
[1748957682541,62.24073585,160.46,160.43,0.04228492]
[1748957683145,62.24073585,160.46,160.35,4.098]
[1748957683146,192.96073585,160.46,160.35,4.098]
[1748957683344,24.68073585,160.43,160.35,4.098]
[1748957683546,43.8096,160.42,160.38,6.2308]
[1748957683748,37.58,160.42,160.35,4.098]
[1748957683941,0.0401036,160.4,160.39,6.2306]
[1748957684249,0.0401036,160.4,160.37,0.04205625]
[1748957684443,6.2308,160.39,160.37,0.04205625]
[1748957684640,0.0401036,160.4,160.37,0.04205625]
[1748957685343,24.72083945,160.4,160.37,0.04205625]
[1748957685742,24.72083945,160.4,160.31,4.1195]
[1748957685743,6.2319,160.36,160.32,6.2334]
[1748957686047,37.58,160.35,160.31,2.0598]
[1748957686549,37.58,160.35,160.27,2.0597]
[1748957686743,0.04722007,160.33,160.29,0.0449972]
[1748957687837,0.04722007,160.33,160.32,6.2334]
[1748957689850,0.04722007,160.33,160.29,0.0449972]
[1748957690351,0.04722007,160.33,160.32,6.2334]
[1748957690648,538.2,160.41,160.3,24.68073585]
[1748957690649,37.32,160.39,160.3,24.68073585]
[1748957690852,37.32,160.43,160.33,24.68073585]
[1748957691049,37.32,160.44,160.34,4.2608]
[1748957691256,37.32,160.43,160.35,16.25647708]
[1748957691456,37.32,160.44,160.35,16.25647708]
[1748957691648,0.04560502,160.41,160.38,0.04454972]
[1748957692355,0.04560502,160.41,160.39,6.2304]
[1748957692552,0.04560502,160.41,160.38,0.04454972]
[1748957692751,0.04560502,160.41,160.38,16.3010268]
[1748957692954,0.04560502,160.41,160.4,6.2303]
[1748957693655,37.32,160.44,160.38,0.04454972]
[1748957693957,37.32,160.48,160.39,24.69461999]
[1748957694351,37.32,160.48,160.39,62.01461999]
[1748957694554,0.04332572,160.45,160.42,0.04765205]
[1748957694764,0.04332572,160.45,160.43,6.229]
[1748957694966,0.04332572,160.45,160.42,0.04765205]
[1748957695465,0.04332572,160.45,160.44,6.2287]
[1748957695663,0.04332572,160.45,160.42,0.04765205]
[1748957695959,0.04332572,160.45,160.42,6.27685205]
[1748957696165,0.04332572,160.45,160.42,0.04765205]
[1748957696364,0.04332572,160.45,160.43,6.2289]
[1748957697563,0.04332572,160.45,160.44,6.2287]
[1748957698965,37.32,160.48,160.47,6.2276]
[1748957699161,37.32,160.48,160.43,4.1698]
[1748957700062,0.04337876,160.47,160.44,6.27043869]
[1748957700462,0.04337876,160.47,160.44,0.04173869]
[1748957701362,37.32,160.52,160.44,62.05635868]
[1748957701562,37.32,160.54,160.48,6.227]
[1748957702063,6.2258,160.52,160.47,6.2274]
[1748957702258,37.32,160.54,160.48,0.04381034]
[1748957702464,0.04122837,160.51,160.48,0.04381034]
[1748957702663,0.04122837,160.51,160.5,6.2264]
[1748957703066,538.36,160.57,160.48,0.04381034]
[1748957703258,538.36,160.57,160.48,37.36381034]
[1748957703462,37.32,160.58,160.48,37.36381034]
[1748957703663,6.2245,160.55,160.5,6.2263]
[1748957703963,37.32,160.54,160.43,2.0072]
[1748957704265,37.32,160.54,160.47,0.04161182]
[1748957704266,0.04186775,160.5,160.47,0.04161182]
[1748957704562,37.32,160.49,160.47,0.04161182]
[1748957704761,37.32,160.49,160.43,4.0259]
[1748957704959,6.2277,160.47,160.43,4.0259]
[1748957705157,37.32,160.49,160.38,37.32]
[1748957705363,37.32,160.49,160.39,3.9892]
[1748957705864,0.04570751,160.46,160.42,0.0412022]
[1748957706060,0.04570751,160.46,160.43,6.2291]
[1748957706266,0.04570751,160.46,160.42,0.0412022]
[1748957707172,0.04570751,160.46,160.42,6.2705022]
[1748957707369,0.04570751,160.46,160.42,0.0412022]
[1748957708271,6.2286,160.45,160.42,0.0412022]
[1748957708473,37.32,160.45,160.42,0.0412022]
[1748957708773,6.2291,160.43,160.42,0.0412022]
[1748957709267,24.69461999,160.44,160.37,6.2313]
[1748957709268,6.2302,160.41,160.37,6.2313]
[1748957709780,43.55,160.41,160.37,6.2312]
[1748957710069,37.32,160.41,160.34,4.2097]
[1748957710270,37.32,160.41,160.36,0.04517932]
[1748957710271,6.2313,160.38,160.36,0.04517932]
[1748957710567,37.32,160.37,160.28,4.2097]
[1748957710865,24.69461999,160.35,160.25,2.55397415]
[1748957711067,24.69461999,160.32,160.25,2.55397415]
[1748957711267,37.32,160.31,160.25,2.55397415]
[1748957711475,37.32,160.31,160.25,8.78987415]
[1748957711669,0.04319907,160.3,160.26,0.04440297]
[1748957711865,24.69461999,160.29,160.26,0.04440297]
[1748957712067,24.69461999,160.29,160.25,2.55397415]
[1748957712262,0.04319907,160.3,160.25,2.55397415]
[1748957712263,24.69461999,160.26,160.25,2.55397415]
[1748957712466,68.25031999,160.26,160.25,2.55397415]
[1748957712665,62.01461999,160.26,160.16,4.1455]
[1748957712869,62.01461999,160.26,160.11,24.69461999]
[1748957712870,130.28,160.25,160.11,24.69461999]
[1748957713170,0.04072047,160.2,160.16,0.039369]
[1748957714166,0.1782,160.31,160.16,0.039369]
[1748957714483,16.30158579,160.27,160.17,16.30158579]
[1748957714672,16.30158579,160.27,160.21,6.2374]
[1748957714868,16.30158579,160.27,160.15,37.34]
[1748957715177,0.04140718,160.23,160.19,0.0444794]
[1748957715674,37.34,160.26,160.19,0.0444794]
[1748957716678,0.04525088,160.24,160.19,0.0444794]
[1748957718480,24.80568041,160.24,160.19,0.0444794]
[1748957719083,0.04525088,160.24,160.19,0.0444794]
[1748957719379,6.2376,160.22,160.19,0.0444794]
[1748957719578,6.2376,160.22,160.11,24.76042953]
[1748957719579,130.56,160.21,160.09,37.1]
[1748957719878,30.99902953,160.19,160.13,6.2407]
[1748957720072,37.1,160.18,160.07,2.1533]
[1748957720473,37.1,160.18,160.09,24.76042953]
[1748957720774,2.059e-05,160.15,160.12,24.80331364]
[1748957720974,538.78,160.25,160.1,37.1]
[1748957720975,575.88,160.25,160.15,24.76042953]
[1748957721182,575.88,160.25,160.16,4.2452]
[1748957721773,575.88,160.25,160.05,5.74409251]
[1748957721774,0.04278883,160.22,160.05,5.74409251]
[1748957721975,173.0,160.24,160.07,31.01046513]
[1748957722169,24.77896513,160.21,160.08,37.1]
[1748957722576,130.54,160.23,160.09,37.12]
[1748957722782,0.04700674,160.18,160.14,0.04081949]
[1748957723477,6.2398,160.16,160.14,0.04081949]
[1748957723677,24.77896513,160.17,160.14,0.04081949]
[1748957724178,0.04700674,160.18,160.14,0.04081949]
[1748957725679,6.24,160.16,160.14,0.04081949]
[1748957725878,0.04700674,160.18,160.14,0.04081949]
[1748957726079,24.77896513,160.17,160.14,0.04081949]
[1748957726479,37.12,160.16,160.02,37.12]
[1748957726681,24.77896513,160.12,160.03,39.1674]
[1748957727087,24.77896513,160.1,160.0,37.12]
[1748957727288,130.86,160.12,160.01,31.01186513]
[1748957727588,0.04491629,160.08,160.07,6.2432]
[1748957727778,0.04736492,160.09,160.06,37.16433965]
[1748957727981,0.04736492,160.09,160.07,37.12]
[1748957728180,0.04736492,160.09,160.06,0.04433965]
[1748957728684,0.04736492,160.09,160.08,6.2428]
[1748957729791,0.04736492,160.09,160.07,6.2431]
[1748957729992,0.04736492,160.09,160.06,0.04433965]
[1748957731487,0.04736492,160.09,160.06,37.18433965]
[1748957732289,0.04736492,160.09,160.06,0.04433965]
[1748957733580,24.77896513,160.07,160.06,0.04433965]
[1748957733778,0.04736492,160.09,160.06,6.28783965]
[1748957733981,0.04736492,160.09,160.06,0.04433965]
[1748957734288,0.04736492,160.09,160.07,6.2431]
[1748957734479,0.04736492,160.09,160.06,0.04433965]
[1748957734887,0.04736492,160.09,160.08,6.2428]
[1748957735086,0.04736492,160.09,160.06,0.04433965]
[1748957735293,0.04736492,160.09,160.06,37.18433965]
[1748957735786,24.77896513,160.08,160.06,0.04433965]
[1748957736395,0.04736492,160.09,160.06,0.04433965]
[1748957736788,6.2399,160.16,160.07,37.14]
[1748957737085,37.2341,160.19,160.07,37.14]
[1748957737281,16.31042892,160.18,160.08,2.0764]
[1748957737488,16.31042892,160.16,160.08,2.0764]
[1748957737681,16.31042892,160.17,160.08,2.0764]
[1748957737889,0.04512284,160.14,160.11,0.04455282]
[1748957738283,0.04512284,160.14,160.13,6.2408]
[1748957738688,16.35555176,160.14,160.11,0.04455282]
[1748957739491,22.59615176,160.14,160.11,0.04455282]
[1748957739796,16.35555176,160.14,160.11,0.04455282]
[1748957740195,0.04512284,160.14,160.11,0.04455282]
[1748957740385,0.04512284,160.14,160.12,6.2412]
[1748957740796,0.04512284,160.14,160.11,0.04455282]
[1748957741484,16.35555176,160.14,160.11,0.04455282]
[1748957741685,16.35555176,160.14,160.11,6.28615282]
[1748957741887,16.35555176,160.14,160.11,0.04455282]
[1748957743387,22.55162892,160.12,160.11,0.04455282]
[1748957743793,16.31042892,160.13,160.11,0.04455282]
[1748957744391,0.04512284,160.14,160.11,0.04455282]
[1748957744699,16.35555176,160.14,160.11,0.04455282]
[1748957745290,0.04512284,160.14,160.11,0.04455282]
[1748957746802,0.04512284,160.14,160.11,6.28595282]
[1748957747598,6.28562284,160.14,160.11,6.28595282]
[1748957748000,0.04512284,160.14,160.11,0.04455282]
[1748957748596,0.04512284,160.14,160.13,6.2408]
[1748957749105,0.04512284,160.14,160.11,0.04455282]
[1748957751396,0.04512284,160.14,160.05,4.1021]
[1748957751397,16.31042892,160.12,160.05,4.1021]
[1748957751796,6.2408,160.13,160.05,4.1021]
[1748957752103,16.31042892,160.14,160.05,4.1021]
[1748957752302,0.0460111,160.11,160.08,0.04008252]
[1748957752709,0.0460111,160.11,160.09,6.2421]
[1748957753098,0.0460111,160.11,160.08,0.01031815]
[1748957753299,37.96,160.15,160.08,16.32074707]
[1748957753603,54.27042892,160.19,160.1,16.31042892]
[1748957753808,37.96,160.19,160.14,6.2402]
[1748957754106,6.2389,160.18,160.14,6.2402]
[1748957754300,37.96,160.19,160.1,16.31042892]
[1748957754606,0.0459104,160.18,160.14,0.0443814]
[1748957755500,0.0459104,160.18,160.15,6.2398]
[1748957755699,0.0459104,160.18,160.14,0.0443814]
[1748957755904,6.2850104,160.18,160.14,0.0443814]
[1748957756308,0.0459104,160.18,160.14,0.0443814]
[1748957756906,0.0459104,160.18,160.15,6.24]
[1748957757207,0.0459104,160.18,160.14,0.0443814]
[1748957757710,0.0459104,160.18,160.17,6.2393]
[1748957757910,0.0459104,160.18,160.14,0.0443814]
[1748957760303,6.2848104,160.18,160.14,0.0443814]
[1748957760605,0.0459104,160.18,160.14,0.0443814]
[1748957761295,0.0459104,160.18,160.14,6.2845814]
[1748957761498,0.0459104,160.18,160.14,0.0443814]
[1748957762697,0.0459104,160.18,160.15,16.31042892]
[1748957763106,54.25042892,160.27,160.19,6.2383]
[1748957763309,54.25042892,160.27,160.17,16.31042892]
[1748957763610,54.25042892,160.27,160.13,43.74887354]
[1748957763611,6.2384,160.2,160.13,43.74887354]
[1748957763807,16.31042892,160.24,160.14,16.31042892]
[1748957764007,0.0471083,160.21,160.17,0.04033734]
[1748957764900,0.0471083,160.21,160.17,6.27953734]
[1748957765104,6.2386,160.19,160.17,0.04033734]
[1748957765498,0.0471083,160.21,160.17,0.04033734]
[1748957765914,0.0471083,160.21,160.2,6.2381]
[1748957767201,37.94,160.27,160.18,37.94]
[1748957767407,37.94,160.27,160.19,18.36152892]
[1748957768012,37.94,160.31,160.19,18.36152892]
[1748957768307,0.04662573,160.27,160.23,0.04471104]
[1748957770009,0.04662573,160.27,160.26,6.2357]
[1748957770804,37.94,160.31,160.29,6.2344]
[1748957771010,37.94,160.31,160.24,16.31042892]
[1748957771709,6.2331,160.33,160.24,16.31042892]
[1748957771915,0.0476116,160.3,160.29,6.2346]
[1748957772117,37.94,160.35,160.29,6.2346]
[1748957772318,37.94,160.35,160.28,2.1372]
[1748957772518,37.94,160.35,160.28,40.0772]
[1748957773111,37.94,160.35,160.31,6.2337]
[1748957773315,16.31042892,160.4,160.3,16.35413881]
[1748957773506,16.31042892,160.4,160.3,16.31042892]
[1748957773815,16.31042892,160.38,160.28,56.38762892]
[1748957774218,54.23042892,160.41,160.3,16.31042892]
[1748957774509,54.23042892,160.41,160.32,16.31042892]
[1748957774510,0.04141592,160.35,160.32,16.31042892]
[1748957774714,555.31042892,160.49,160.34,16.31042892]
[1748957774715,37.92,160.45,160.34,16.31042892]
[1748957774918,37.92,160.45,160.36,16.31042892]
[1748957775106,37.92,160.45,160.4,6.23]
[1748957775417,37.92,160.45,160.39,16.31042892]
[1748957775715,37.92,160.45,160.4,0.04284105]
[1748957775716,44.1485,160.45,160.4,0.04284105]
[1748957776319,54.23042892,160.45,160.4,0.04284105]
[1748957776612,16.31042892,160.43,160.4,0.04284105]
[1748957776813,6.2296,160.42,160.4,0.04284105]
[1748957777005,16.31042892,160.43,160.4,0.04284105]
[1748957777405,6.2298,160.42,160.4,0.04284105]
[1748957777606,54.23042892,160.45,160.4,0.04284105]
[1748957778214,185.33042892,160.45,160.4,0.04284105]
[1748957778809,37.92,160.45,160.4,0.04284105]
[1748957779214,6.2299,160.41,160.4,0.04284105]
[1748957780515,37.42,160.41,160.33,37.92]
[1748957780818,16.31042892,160.37,160.3,4.2044]
[1748957781016,16.31042892,160.35,160.3,4.2044]
[1748957781208,6.2319,160.36,160.3,4.2044]
[1748957781408,6.2319,160.36,160.32,6.2332]
[1748957781615,16.31042892,160.35,160.32,0.04361734]
[1748957781816,16.31042892,160.33,160.32,0.04361734]
[1748957783017,0.04255296,160.36,160.32,0.04361734]
[1748957783219,22.54292892,160.35,160.32,0.04361734]
[1748957783715,0.04255296,160.36,160.33,6.2327]
[1748957783915,0.04255296,160.36,160.32,0.04361734]
[1748957784919,6.2329,160.34,160.32,0.04361734]
[1748957785218,16.31042892,160.34,160.32,0.04361734]
[1748957785420,6.233,160.33,160.32,0.04361734]
[1748957785615,16.31042892,160.34,160.32,0.04361734]
[1748957785918,0.04255296,160.36,160.32,0.04361734]
[1748957786921,16.35298188,160.36,160.32,0.04361734]
[1748957787123,16.31042892,160.34,160.32,0.04361734]
[1748957787616,6.233,160.33,160.32,0.04361734]
[1748957788722,16.31042892,160.34,160.32,0.04361734]
[1748957789415,22.54312892,160.34,160.32,0.04361734]
[1748957789822,16.35298188,160.36,160.32,0.04361734]
[1748957790125,6.27465296,160.36,160.32,0.04361734]
[1748957790324,0.04255296,160.36,160.32,0.04361734]
[1748957790524,0.04255296,160.36,160.32,6.27671734]
[1748957790823,0.04255296,160.36,160.32,0.04361734]
[1748957792221,6.27475296,160.36,160.32,0.04361734]
[1748957792426,0.04255296,160.36,160.32,0.04361734]
[1748957793421,6.2323,160.35,160.32,0.04361734]
[1748957794827,6.2323,160.35,160.32,6.27691734]
[1748957796124,6.27455296,160.36,160.32,6.27691734]
[1748957796518,6.2323,160.35,160.32,6.27691734]
[1748957796721,0.04255296,160.36,160.34,6.2326]
[1748957797020,0.04255296,160.36,160.32,0.04361734]
[1748957797214,6.27465296,160.36,160.32,0.04361734]
[1748957797414,0.04255296,160.36,160.33,6.2328]
[1748957797614,0.04255296,160.36,160.32,0.04361734]
[1748957798419,0.04255296,160.36,160.33,6.2328]
[1748957799021,0.04255296,160.36,160.34,6.2326]
[1748957799220,37.42,160.42,160.32,16.35404626]